[Event "*** Titled Tuesday Blitz"]
[Site "Chess.com"]
[Date "2020.11.24"]
[Round "3"]
[White "machupichu10"]
[Black "dopolian"]
[Result "1-0"]
[WhiteElo "2759"]
[BlackElo "2411"]
[TimeControl "180+1"]
[EndTime "10:45:29 PST"]
[Termination "machupichu10 won by resignation"]

1. d4 {[%clk 0:03:00.9]} 1... Nf6 {[%clk 0:02:58.3]} 2. Bf4 {[%clk 0:02:59.2]}
2... g6 {[%clk 0:02:50.9]} 3. c3 {[%clk 0:02:58.3]} 3... Bg7 {[%clk 0:02:49.6]}
4. h3 {[%clk 0:02:58.9]} 4... O-O {[%clk 0:02:49.4]} 5. e3 {[%clk 0:02:59.4]}
5... d5 {[%clk 0:02:47.6]} 6. Nf3 {[%clk 0:02:58]} 6... c6 {[%clk 0:02:46.6]} 7.
Nbd2 {[%clk 0:02:58.3]} 7... Bf5 {[%clk 0:02:46.4]} 8. Be2 {[%clk 0:02:57.6]}
8... Nbd7 {[%clk 0:02:43]} 9. O-O {[%clk 0:02:56.7]} 9... Ne4 {[%clk 0:02:40.7]}
10. Nxe4 {[%clk 0:02:56.7]} 10... Bxe4 {[%clk 0:02:40.4]} 11. Nd2 {[%clk
0:02:57.2]} 11... Bf5 {[%clk 0:02:39.9]} 12. a4 {[%clk 0:02:56.7]} 12... a5
{[%clk 0:02:39.2]} 13. c4 {[%clk 0:02:54]} 13... Qb6 {[%clk 0:02:35.3]} 14. cxd5
{[%clk 0:02:49.1]} 14... cxd5 {[%clk 0:02:34.6]} 15. Bb5 {[%clk 0:02:49.3]}
15... e5 {[%clk 0:02:32.5]} 16. dxe5 {[%clk 0:02:01]} 16... Nxe5 {[%clk
0:02:29]} 17. Nb3 {[%clk 0:02:01.3]} 17... Rfd8 {[%clk 0:02:18.5]} 18. Nd4
{[%clk 0:02:01.4]} 18... Bd7 {[%clk 0:02:14.7]} 19. Rc1 {[%clk 0:02:00.7]} 19...
Rac8 {[%clk 0:02:05.5]} 20. Bxd7 {[%clk 0:01:12.7]} 20... Rxc1 {[%clk
0:02:00.1]} 21. Qxc1 {[%clk 0:01:12.6]} 21... Rxd7 {[%clk 0:02:00.2]} 22. Nb5
{[%clk 0:01:07.5]} 22... Nd3 {[%clk 0:01:50.6]} 23. Qc8+ {[%clk 0:00:48]} 23...
Rd8 {[%clk 0:01:48.3]} 24. Qc7 {[%clk 0:00:47.6]} 24... Qxc7 {[%clk 0:01:44.8]}
25. Bxc7 {[%clk 0:00:48.5]} 25... Rc8 {[%clk 0:01:42.8]} 26. b3 {[%clk
0:00:48.9]} 26... Nc5 {[%clk 0:00:58.6]} 27. Rb1 {[%clk 0:00:48.3]} 27... Ra8
{[%clk 0:00:57.3]} 28. Bb6 {[%clk 0:00:45.9]} 28... Nd7 {[%clk 0:00:50.9]} 29.
Bc7 {[%clk 0:00:28.5]} 29... Nc5 {[%clk 0:00:44.8]} 30. Bd6 {[%clk 0:00:28.6]}
30... Ne4 {[%clk 0:00:42.4]} 31. Rd1 {[%clk 0:00:28.3]} 31... Nf6 {[%clk
0:00:21.1]} 32. g4 {[%clk 0:00:21.9]} 32... Rd8 {[%clk 0:00:12.5]} 33. Bc7
{[%clk 0:00:20.3]} 33... Rd7 {[%clk 0:00:08.1]} 34. Bxa5 {[%clk 0:00:20.6]}
34... h5 {[%clk 0:00:08.4]} 35. f3 {[%clk 0:00:17.9]} 35... hxg4 {[%clk
0:00:08.3]} 36. hxg4 {[%clk 0:00:18.8]} 36... Bh6 {[%clk 0:00:07.4]} 37. Kf2
{[%clk 0:00:18.1]} 37... Re7 {[%clk 0:00:06.4]} 38. Bb6 {[%clk 0:00:18.4]} 38...
Re6 {[%clk 0:00:05.8]} 39. Bd4 {[%clk 0:00:18.7]} 39... Nd7 {[%clk 0:00:05.2]}
40. Nc3 {[%clk 0:00:18.4]} 40... Rd6 {[%clk 0:00:03.3]} 41. a5 {[%clk
0:00:15.8]} 41... Nb8 {[%clk 0:00:02.7]} 42. Be5 {[%clk 0:00:16.1]} 42... Rd8
{[%clk 0:00:02.5]} 43. Bxb8 {[%clk 0:00:15.8]} 43... Rxb8 {[%clk 0:00:03.4]} 44.
Nxd5 {[%clk 0:00:16.4]} 44... Ra8 {[%clk 0:00:03]} 45. b4 {[%clk 0:00:16.9]}
45... Bf8 {[%clk 0:00:02.8]} 46. Rc1 {[%clk 0:00:17.1]} 46... Rd8 {[%clk
0:00:02.8]} 47. e4 {[%clk 0:00:17.6]} 47... Bd6 {[%clk 0:00:01.9]} 48. f4 {[%clk
0:00:18.1]} 48... Kf8 {[%clk 0:00:01.5]} 49. Ke3 {[%clk 0:00:16.9]} 49... Re8
{[%clk 0:00:02]} 50. e5 {[%clk 0:00:16.7]} 50... Bb8 {[%clk 0:00:02]} 51. Ke4
{[%clk 0:00:13.5]} 51... Rd8 {[%clk 0:00:02.7]} 52. g5 {[%clk 0:00:13.5]} 52...
Rd7 {[%clk 0:00:02.8]} 53. Rh1 {[%clk 0:00:13.8]} 53... Kg7 {[%clk 0:00:01.9]}
54. Nf6 {[%clk 0:00:14.2]} 54... Rc7 {[%clk 0:00:02.1]} 55. Rh7+ {[%clk
0:00:14.3]} 55... Kf8 {[%clk 0:00:02.4]} 56. Rh8+ {[%clk 0:00:15.2]} 1-0

[Event "*** Titled Tuesday Blitz"]
[Site "Chess.com"]
[Date "2020.11.24"]
[Round "3"]
[White "Fortitudine"]
[Black "pedromartinez91"]
[Result "0-1"]
[WhiteElo "2347"]
[BlackElo "2528"]
[TimeControl "180+1"]
[EndTime "10:45:31 PST"]
[Termination "pedromartinez91 won by checkmate"]

1. c4 {[%clk 0:03:00.9]} 1... Nf6 {[%clk 0:02:58]} 2. g3 {[%clk 0:03:01]} 2...
Nc6 {[%clk 0:02:58.2]} 3. Bg2 {[%clk 0:03:00.5]} 3... d6 {[%clk 0:02:58.8]} 4.
Nc3 {[%clk 0:03:00.4]} 4... g6 {[%clk 0:02:59.3]} 5. e4 {[%clk 0:02:59.9]} 5...
Bg7 {[%clk 0:02:59.3]} 6. d3 {[%clk 0:03:00.1]} 6... O-O {[%clk 0:02:59.7]} 7.
Nge2 {[%clk 0:03:00.6]} 7... a6 {[%clk 0:02:57.7]} 8. O-O {[%clk 0:03:00.2]}
8... Rb8 {[%clk 0:02:58.2]} 9. a4 {[%clk 0:03:00.2]} 9... a5 {[%clk 0:02:48.9]}
10. h3 {[%clk 0:02:59.9]} 10... e5 {[%clk 0:02:37.7]} 11. Be3 {[%clk 0:02:59.8]}
11... Nd7 {[%clk 0:02:33.9]} 12. d4 {[%clk 0:02:59.1]} 12... exd4 {[%clk
0:02:32.4]} 13. Nxd4 {[%clk 0:03:00]} 13... Nc5 {[%clk 0:02:27.3]} 14. Ndb5
{[%clk 0:01:50.8]} 14... Be6 {[%clk 0:02:18.4]} 15. b3 {[%clk 0:01:48.4]} 15...
Nb4 {[%clk 0:02:10.9]} 16. Nd4 {[%clk 0:01:35.3]} 16... Bd7 {[%clk 0:02:01.4]}
17. Rb1 {[%clk 0:01:26.5]} 17... Re8 {[%clk 0:02:00.6]} 18. Re1 {[%clk
0:01:19.1]} 18... c6 {[%clk 0:01:58.9]} 19. Re2 {[%clk 0:01:16.4]} 19... Qc7
{[%clk 0:01:55.4]} 20. Kh2 {[%clk 0:01:15.8]} 20... Rbd8 {[%clk 0:01:55.2]} 21.
Qd2 {[%clk 0:01:04.8]} 21... Bc8 {[%clk 0:01:54.3]} 22. Bg5 {[%clk 0:01:00.8]}
22... Rd7 {[%clk 0:01:48.2]} 23. h4 {[%clk 0:00:48.7]} 23... Ne6 {[%clk
0:01:26.9]} 24. Nxe6 {[%clk 0:00:47.9]} 24... fxe6 {[%clk 0:01:27]} 25. Rd1
{[%clk 0:00:44.5]} 25... Rf7 {[%clk 0:01:23.3]} 26. Be3 {[%clk 0:00:43]} 26...
Ref8 {[%clk 0:01:13.8]} 27. f4 {[%clk 0:00:40.9]} 27... e5 {[%clk 0:01:08.1]}
28. Rf1 {[%clk 0:00:20.2]} 28... Bg4 {[%clk 0:01:06.5]} 29. Ree1 {[%clk
0:00:20]} 29... Qe7 {[%clk 0:01:03.2]} 30. Bf3 {[%clk 0:00:16.3]} 30... exf4
{[%clk 0:01:02.2]} 31. Bxf4 {[%clk 0:00:15.8]} 31... Rxf4 {[%clk 0:00:52.8]} 32.
gxf4 {[%clk 0:00:15.2]} 32... Qxh4+ {[%clk 0:00:53.3]} 33. Kg1 {[%clk
0:00:13.7]} 33... Qg3+ {[%clk 0:00:45.7]} 34. Qg2 {[%clk 0:00:13.6]} 34... Qxg2+
{[%clk 0:00:46.1]} 35. Kxg2 {[%clk 0:00:14]} 35... Rxf4 {[%clk 0:00:37.1]} 36.
Ne2 {[%clk 0:00:12]} 36... Bxf3+ {[%clk 0:00:34.5]} 37. Rxf3 {[%clk 0:00:12.9]}
37... Rxe4 {[%clk 0:00:34.9]} 38. Rf2 {[%clk 0:00:13.2]} 38... Nd3 {[%clk
0:00:32.5]} 39. Ref1 {[%clk 0:00:12.8]} 39... Nxf2 {[%clk 0:00:32.6]} 40. Rxf2
{[%clk 0:00:13.7]} 40... d5 {[%clk 0:00:27.2]} 41. cxd5 {[%clk 0:00:13.4]} 41...
cxd5 {[%clk 0:00:28.1]} 42. Nc1 {[%clk 0:00:13.2]} 42... Re3 {[%clk 0:00:26.9]}
43. Rd2 {[%clk 0:00:13]} 43... d4 {[%clk 0:00:27]} 44. Nd3 {[%clk 0:00:12.6]}
44... h5 {[%clk 0:00:26]} 45. Nc5 {[%clk 0:00:12.8]} 45... h4 {[%clk 0:00:26]}
46. Nxb7 {[%clk 0:00:12.6]} 46... Rg3+ {[%clk 0:00:26.3]} 47. Kh2 {[%clk
0:00:12.4]} 47... Rxb3 {[%clk 0:00:26.3]} 48. Nxa5 {[%clk 0:00:11.6]} 48... Be5+
{[%clk 0:00:26.2]} 49. Kg2 {[%clk 0:00:11.4]} 49... Rg3+ {[%clk 0:00:26.4]} 50.
Kh1 {[%clk 0:00:11.3]} 50... h3 {[%clk 0:00:26.6]} 51. Nc4 {[%clk 0:00:11.5]}
51... Bf6 {[%clk 0:00:24.2]} 52. Rf2 {[%clk 0:00:11.2]} 52... Kg7 {[%clk
0:00:23.3]} 53. Nd6 {[%clk 0:00:11.1]} 53... Be5 {[%clk 0:00:19.5]} 54. Ne4
{[%clk 0:00:10.6]} 54... Re3 {[%clk 0:00:19.1]} 55. Ng5 {[%clk 0:00:10.8]} 55...
Re1+ {[%clk 0:00:19.4]} 56. Rf1 {[%clk 0:00:10.6]} 56... Rxf1# {[%clk
0:00:19.9]} 0-1

[Event "*** Titled Tuesday Blitz"]
[Site "Chess.com"]
[Date "2020.11.24"]
[Round "3"]
[White "MaxLeto"]
[Black "Matols"]
[Result "1-0"]
[WhiteElo "2413"]
[BlackElo "2254"]
[TimeControl "180+1"]
[EndTime "10:45:32 PST"]
[Termination "MaxLeto won on time"]

1. g4 {[%clk 0:02:23.7]} 1... d5 {[%clk 0:02:58.7]} 2. g5 {[%clk 0:02:23.5]}
2... e5 {[%clk 0:02:56]} 3. d4 {[%clk 0:02:22.9]} 3... exd4 {[%clk 0:02:51.7]}
4. Qxd4 {[%clk 0:02:23.8]} 4... Nc6 {[%clk 0:02:50.1]} 5. Qd1 {[%clk 0:02:03]}
5... Bd6 {[%clk 0:02:37.7]} 6. Bg2 {[%clk 0:01:54.9]} 6... Nge7 {[%clk
0:02:36.2]} 7. Nc3 {[%clk 0:01:51.3]} 7... Be6 {[%clk 0:02:35.4]} 8. Nb5 {[%clk
0:01:46.9]} 8... Bc5 {[%clk 0:02:22]} 9. Bf4 {[%clk 0:01:45]} 9... Bb6 {[%clk
0:02:21.5]} 10. Nf3 {[%clk 0:01:42.7]} 10... a6 {[%clk 0:02:13]} 11. Nbd4 {[%clk
0:01:41.9]} 11... Nxd4 {[%clk 0:02:04]} 12. Nxd4 {[%clk 0:01:42.8]} 12... Ng6
{[%clk 0:02:01.2]} 13. Qd2 {[%clk 0:01:28.7]} 13... Nxf4 {[%clk 0:01:55.8]} 14.
Qxf4 {[%clk 0:01:29.6]} 14... Bxd4 {[%clk 0:01:54.2]} 15. Qxd4 {[%clk
0:01:28.8]} 15... Qxg5 {[%clk 0:01:54.1]} 16. Bf3 {[%clk 0:00:59.3]} 16... Qf6
{[%clk 0:01:43]} 17. Qa4+ {[%clk 0:00:47.7]} 17... b5 {[%clk 0:01:27.8]} 18. Qb3
{[%clk 0:00:47.8]} 18... Rd8 {[%clk 0:01:21.1]} 19. O-O-O {[%clk 0:00:47.5]}
19... c5 {[%clk 0:00:58.1]} 20. Kb1 {[%clk 0:00:42.5]} 20... c4 {[%clk
0:00:55.9]} 21. Qa3 {[%clk 0:00:39.6]} 21... Qe7 {[%clk 0:00:36.9]} 22. Qxa6
{[%clk 0:00:38.3]} 22... O-O {[%clk 0:00:35.9]} 23. Qxb5 {[%clk 0:00:31.4]}
23... Rb8 {[%clk 0:00:35.2]} 24. Qa5 {[%clk 0:00:30.4]} 24... Qf6 {[%clk
0:00:32.8]} 25. b3 {[%clk 0:00:16.5]} 25... Ra8 {[%clk 0:00:24.8]} 26. Qc5
{[%clk 0:00:14.1]} 26... cxb3 {[%clk 0:00:19.8]} 27. Qd4 {[%clk 0:00:07]} 27...
bxa2+ {[%clk 0:00:18.7]} 28. Ka1 {[%clk 0:00:06.1]} 28... Qg6 {[%clk 0:00:16]}
29. Bxd5 {[%clk 0:00:04.4]} 29... Qxc2 {[%clk 0:00:14.5]} 30. Qd2 {[%clk
0:00:03.2]} 30... Qxd2 {[%clk 0:00:12.8]} 31. Rxd2 {[%clk 0:00:03.4]} 31... Rad8
{[%clk 0:00:09.1]} 32. Rhd1 {[%clk 0:00:02.4]} 32... Bxd5 {[%clk 0:00:08.2]} 33.
Rxd5 {[%clk 0:00:03.3]} 33... Ra8 {[%clk 0:00:08]} 34. R5d2 {[%clk 0:00:02.5]}
34... h5 {[%clk 0:00:06]} 35. Rxa2 {[%clk 0:00:02.4]} 35... Rxa2+ {[%clk
0:00:05.9]} 36. Kxa2 {[%clk 0:00:03.3]} 36... Rb8 {[%clk 0:00:05.7]} 37. Rd2
{[%clk 0:00:03.4]} 37... Kh7 {[%clk 0:00:05.3]} 38. Ka3 {[%clk 0:00:03.5]} 38...
Kg6 {[%clk 0:00:05.2]} 39. Rd4 {[%clk 0:00:02.7]} 39... f6 {[%clk 0:00:05.1]}
40. h4 {[%clk 0:00:02.4]} 40... Kf5 {[%clk 0:00:04.3]} 41. e3 {[%clk 0:00:02.5]}
41... g5 {[%clk 0:00:02.7]} 42. hxg5 {[%clk 0:00:02.1]} 42... fxg5 {[%clk
0:00:02.6]} 43. Rd5+ {[%clk 0:00:02.7]} 43... Kg6 {[%clk 0:00:01.8]} 44. e4
{[%clk 0:00:02.8]} 44... h4 {[%clk 0:00:01.6]} 45. Rd3 {[%clk 0:00:02.3]} 45...
g4 {[%clk 0:00:01.2]} 46. Re3 {[%clk 0:00:01.5]} 1-0

[Event "*** Titled Tuesday Blitz"]
[Site "Chess.com"]
[Date "2020.11.24"]
[Round "3"]
[White "santosalberto1987"]
[Black "Alexander_Kachko"]
[Result "0-1"]
[WhiteElo "2454"]
[BlackElo "2775"]
[TimeControl "180+1"]
[EndTime "10:45:34 PST"]
[Termination "Alexander_Kachko won on time"]

1. e4 {[%clk 0:03:00]} 1... Nc6 {[%clk 0:02:59.7]} 2. Nf3 {[%clk 0:02:59.4]}
2... d6 {[%clk 0:02:57.6]} 3. d4 {[%clk 0:02:58.9]} 3... g6 {[%clk 0:02:55.7]}
4. Nc3 {[%clk 0:02:57.7]} 4... Bg7 {[%clk 0:02:55.4]} 5. Be3 {[%clk 0:02:57.7]}
5... Bd7 {[%clk 0:02:51.2]} 6. Qd2 {[%clk 0:02:56.4]} 6... e5 {[%clk 0:02:48.9]}
7. Bc4 {[%clk 0:02:45.3]} 7... Nf6 {[%clk 0:02:46.7]} 8. dxe5 {[%clk 0:02:40.1]}
8... Nxe5 {[%clk 0:02:43.8]} 9. Nxe5 {[%clk 0:02:40.1]} 9... dxe5 {[%clk
0:02:44.7]} 10. Bh6 {[%clk 0:02:39.4]} 10... O-O {[%clk 0:02:43.4]} 11. O-O-O
{[%clk 0:02:36.6]} 11... Be6 {[%clk 0:02:40.5]} 12. Bxg7 {[%clk 0:02:33.5]}
12... Qxd2+ {[%clk 0:02:38.1]} 13. Rxd2 {[%clk 0:02:33]} 13... Kxg7 {[%clk
0:02:38.3]} 14. Bxe6 {[%clk 0:02:30.5]} 14... fxe6 {[%clk 0:02:39.2]} 15. f3
{[%clk 0:02:31]} 15... a6 {[%clk 0:02:37.5]} 16. Rhd1 {[%clk 0:02:23.7]} 16...
Kf7 {[%clk 0:02:36.2]} 17. Ne2 {[%clk 0:02:23]} 17... Ke7 {[%clk 0:02:35.7]} 18.
b3 {[%clk 0:02:15.8]} 18... g5 {[%clk 0:02:29.4]} 19. h3 {[%clk 0:01:58.3]}
19... h5 {[%clk 0:02:28.2]} 20. g4 {[%clk 0:01:52.1]} 20... hxg4 {[%clk
0:02:25.9]} 21. hxg4 {[%clk 0:01:51.4]} 21... Rh8 {[%clk 0:02:25.7]} 22. Ng3
{[%clk 0:01:48.4]} 22... Rad8 {[%clk 0:02:12.2]} 23. Rxd8 {[%clk 0:01:43.4]}
23... Rxd8 {[%clk 0:02:13.1]} 24. Rxd8 {[%clk 0:01:43.9]} 24... Kxd8 {[%clk
0:02:13.2]} 25. Kd2 {[%clk 0:01:43.7]} 25... Ke7 {[%clk 0:02:11.9]} 26. Kd3
{[%clk 0:01:38.3]} 26... Kd6 {[%clk 0:02:08.2]} 27. b4 {[%clk 0:01:37.5]} 27...
c5 {[%clk 0:02:05.7]} 28. a3 {[%clk 0:01:33.2]} 28... b5 {[%clk 0:02:04.5]} 29.
Nf1 {[%clk 0:01:28.2]} 29... c4+ {[%clk 0:01:59.9]} 30. Ke3 {[%clk 0:01:27.7]}
30... Nd7 {[%clk 0:01:57.3]} 31. Ng3 {[%clk 0:01:18.1]} 31... Nb6 {[%clk
0:01:55.4]} 32. Nh1 {[%clk 0:01:15]} 32... Na4 {[%clk 0:01:53.3]} 33. Nf2 {[%clk
0:01:13.4]} 33... Nc3 {[%clk 0:01:51.8]} 34. Nh3 {[%clk 0:01:10.5]} 34... Nb1
{[%clk 0:01:50.2]} 35. Nxg5 {[%clk 0:01:08.9]} 35... Ke7 {[%clk 0:01:47.3]} 36.
Nh3 {[%clk 0:01:05.5]} 36... Nxa3 {[%clk 0:01:46.5]} 37. Kd2 {[%clk 0:01:05.6]}
37... Nb1+ {[%clk 0:01:44.5]} 38. Kc1 {[%clk 0:01:04.4]} 38... Nc3 {[%clk
0:01:44.5]} 39. Kd2 {[%clk 0:01:04.6]} 39... Nb1+ {[%clk 0:01:42.5]} 40. Kc1
{[%clk 0:01:04.7]} 40... Nc3 {[%clk 0:01:40.1]} 41. Kd2 {[%clk 0:00:57.2]} 41...
Na4 {[%clk 0:01:23.1]} 42. Nf2 {[%clk 0:00:47.7]} 42... Kf6 {[%clk 0:01:20.6]}
43. Nh3 {[%clk 0:00:41.6]} 43... Nb6 {[%clk 0:01:18.9]} 44. Ke3 {[%clk
0:00:36.6]} 44... Nd7 {[%clk 0:01:16.3]} 45. c3 {[%clk 0:00:33.6]} 45... Nb8
{[%clk 0:01:13.6]} 46. f4 {[%clk 0:00:30.7]} 46... exf4+ {[%clk 0:01:12.3]} 47.
Kxf4 {[%clk 0:00:30.9]} 47... e5+ {[%clk 0:01:12.3]} 48. Ke3 {[%clk 0:00:28.8]}
48... Nc6 {[%clk 0:01:12.3]} 49. Kd2 {[%clk 0:00:25.3]} 49... a5 {[%clk
0:01:10.4]} 50. bxa5 {[%clk 0:00:26.2]} 50... Nxa5 {[%clk 0:01:10.9]} 51. Kc2
{[%clk 0:00:26.9]} 51... Nb3 {[%clk 0:01:10.2]} 52. Kb2 {[%clk 0:00:23.4]} 52...
Nc5 {[%clk 0:01:09.5]} 53. Nf2 {[%clk 0:00:23.2]} 53... Kg5 {[%clk 0:01:09.7]}
54. Ka3 {[%clk 0:00:23.4]} 54... Nd3 {[%clk 0:01:06.3]} 55. Nd1 {[%clk
0:00:08.2]} 55... Kxg4 {[%clk 0:01:00.2]} 56. Ne3+ {[%clk 0:00:06.8]} 56... Kf4
{[%clk 0:00:59]} 57. Nd5+ {[%clk 0:00:07.7]} 57... Kxe4 {[%clk 0:00:57.2]} 58.
Nc7 {[%clk 0:00:08.6]} 58... Ke3 {[%clk 0:00:51.6]} 59. Nxb5 {[%clk 0:00:07.4]}
59... Kd2 {[%clk 0:00:51.8]} 60. Ka4 {[%clk 0:00:02.2]} 60... Kc2 {[%clk
0:00:47.4]} 0-1

[Event "*** Titled Tuesday Blitz"]
[Site "Chess.com"]
[Date "2020.11.24"]
[Round "3"]
[White "Dave_ChessMate"]
[Black "Pikachess999"]
[Result "1/2-1/2"]
[WhiteElo "2464"]
[BlackElo "2355"]
[TimeControl "180+1"]
[EndTime "10:45:38 PST"]
[Termination "Game drawn by repetition"]

1. d4 {[%clk 0:03:00.9]} 1... d5 {[%clk 0:02:59.9]} 2. c4 {[%clk 0:03:01.2]}
2... dxc4 {[%clk 0:02:59.6]} 3. e3 {[%clk 0:03:01.4]} 3... Nf6 {[%clk
0:02:59.9]} 4. Bxc4 {[%clk 0:03:01.5]} 4... a6 {[%clk 0:03:00.6]} 5. a4 {[%clk
0:03:00.1]} 5... c5 {[%clk 0:02:47.8]} 6. Nf3 {[%clk 0:02:58.5]} 6... Bg4 {[%clk
0:02:47.8]} 7. Bxf7+ {[%clk 0:02:48.1]} 7... Kxf7 {[%clk 0:02:41.3]} 8. Ne5+
{[%clk 0:02:48.4]} 8... Kg8 {[%clk 0:02:40.1]} 9. Nxg4 {[%clk 0:02:36.8]} 9...
cxd4 {[%clk 0:02:36.6]} 10. Nxf6+ {[%clk 0:02:13.6]} 10... gxf6 {[%clk
0:02:36.2]} 11. exd4 {[%clk 0:02:14.1]} 11... Nc6 {[%clk 0:02:29.7]} 12. Qg4+
{[%clk 0:02:09.7]} 12... Kf7 {[%clk 0:02:29.1]} 13. Qh5+ {[%clk 0:01:54.2]}
13... Kg8 {[%clk 0:02:28.8]} 14. Be3 {[%clk 0:01:48.2]} 14... e5 {[%clk
0:02:17.4]} 15. dxe5 {[%clk 0:01:35]} 15... Qa5+ {[%clk 0:02:12.2]} 16. Nc3
{[%clk 0:01:33.1]} 16... Qxe5 {[%clk 0:02:13.1]} 17. Qg4+ {[%clk 0:01:25.4]}
17... Kf7 {[%clk 0:02:07.7]} 18. Rd1 {[%clk 0:01:24.3]} 18... Rg8 {[%clk
0:01:43]} 19. Qc4+ {[%clk 0:01:22.3]} 19... Qe6 {[%clk 0:01:42.7]} 20. Rd7+
{[%clk 0:01:05.3]} 20... Be7 {[%clk 0:01:42.4]} 21. Qxe6+ {[%clk 0:01:04.9]}
21... Kxe6 {[%clk 0:01:42.2]} 22. Rxb7 {[%clk 0:01:03.5]} 22... Rxg2 {[%clk
0:01:37.5]} 23. Ke2 {[%clk 0:01:02.9]} 23... Rb8 {[%clk 0:01:25.9]} 24. Rxb8
{[%clk 0:00:57]} 24... Nxb8 {[%clk 0:01:26.8]} 25. Ne4 {[%clk 0:00:56.2]} 25...
Rg4 {[%clk 0:01:16.8]} 26. Kf3 {[%clk 0:00:52]} 26... f5 {[%clk 0:01:15.3]} 27.
Nc5+ {[%clk 0:00:46.8]} 27... Bxc5 {[%clk 0:01:14.8]} 28. Bxc5 {[%clk
0:00:47.7]} 28... Rxa4 {[%clk 0:01:15.4]} 29. Re1+ {[%clk 0:00:46]} 29... Kd5
{[%clk 0:01:00.3]} 30. Ba3 {[%clk 0:00:42.5]} 30... Nc6 {[%clk 0:00:55.8]} 31.
Rd1+ {[%clk 0:00:43]} 31... Rd4 {[%clk 0:00:55.3]} 32. Rxd4+ {[%clk 0:00:41.5]}
32... Nxd4+ {[%clk 0:00:53.7]} 33. Kf4 {[%clk 0:00:40.2]} 33... Ke6 {[%clk
0:00:52.9]} 34. Kg5 {[%clk 0:00:39.2]} 34... Nf3+ {[%clk 0:00:52.9]} 35. Kh6
{[%clk 0:00:37.9]} 35... Nxh2 {[%clk 0:00:53.2]} 36. Kxh7 {[%clk 0:00:38.6]}
36... f4 {[%clk 0:00:42.2]} 37. Kg6 {[%clk 0:00:36.3]} 37... Ke5 {[%clk
0:00:42.5]} 38. Kg5 {[%clk 0:00:36.1]} 38... f3 {[%clk 0:00:32.1]} 39. Bc5
{[%clk 0:00:25.8]} 39... Nf1 {[%clk 0:00:25.1]} 40. Kg4 {[%clk 0:00:24.3]} 40...
Ke4 {[%clk 0:00:25.3]} 41. b4 {[%clk 0:00:22.1]} 41... Nd2 {[%clk 0:00:24.2]}
42. Bf8 {[%clk 0:00:19.1]} 42... Nb1 {[%clk 0:00:21.1]} 43. Bc5 {[%clk
0:00:18.2]} 43... Nc3 {[%clk 0:00:21.1]} 44. Bf8 {[%clk 0:00:17.2]} 44... Nd5
{[%clk 0:00:16.3]} 45. Bc5 {[%clk 0:00:15.9]} 45... Nc3 {[%clk 0:00:13.4]} 46.
Bf8 {[%clk 0:00:15.4]} 46... Na4 {[%clk 0:00:13.5]} 47. Be7 {[%clk 0:00:14.3]}
47... Nb6 {[%clk 0:00:13]} 48. Bc5 {[%clk 0:00:14.1]} 48... Nd5 {[%clk
0:00:13.3]} 49. Kg3 {[%clk 0:00:10]} 49... Nc3 {[%clk 0:00:10]} 50. Kg4 {[%clk
0:00:08.7]} 50... Nb1 {[%clk 0:00:10.2]} 51. Bf8 {[%clk 0:00:08.6]} 51... Nd2
{[%clk 0:00:09.9]} 52. Bc5 {[%clk 0:00:08.6]} 52... Nb3 {[%clk 0:00:07.8]} 53.
Bf8 {[%clk 0:00:08.3]} 53... Nd2 {[%clk 0:00:07.6]} 54. Bc5 {[%clk 0:00:08.1]}
54... Nb3 {[%clk 0:00:07.3]} 55. Bf8 {[%clk 0:00:08]} 55... Nd2 {[%clk
0:00:07.3]} 1/2-1/2

[Event "*** Titled Tuesday Blitz"]
[Site "Chess.com"]
[Date "2020.11.24"]
[Round "3"]
[White "Sharpchess22"]
[Black "vaishali2001"]
[Result "1-0"]
[WhiteElo "2811"]
[BlackElo "2589"]
[TimeControl "180+1"]
[EndTime "10:45:41 PST"]
[Termination "Sharpchess22 won by resignation"]

1. d4 {[%clk 0:02:59.9]} 1... Nf6 {[%clk 0:02:59.6]} 2. Nf3 {[%clk 0:02:58.8]}
2... g6 {[%clk 0:02:58.5]} 3. Bf4 {[%clk 0:02:57.7]} 3... Bg7 {[%clk 0:02:58.1]}
4. e3 {[%clk 0:02:57.8]} 4... O-O {[%clk 0:02:57.6]} 5. h3 {[%clk 0:02:57.2]}
5... d5 {[%clk 0:02:57.9]} 6. Be2 {[%clk 0:02:56.3]} 6... c5 {[%clk 0:02:58.2]}
7. c3 {[%clk 0:02:55]} 7... Nc6 {[%clk 0:02:56.3]} 8. Nbd2 {[%clk 0:02:52.2]}
8... Nd7 {[%clk 0:02:51.6]} 9. Bh2 {[%clk 0:02:50.9]} 9... e5 {[%clk 0:02:50.5]}
10. dxe5 {[%clk 0:02:49.9]} 10... Ndxe5 {[%clk 0:02:51.4]} 11. O-O {[%clk
0:02:49.5]} 11... Nxf3+ {[%clk 0:02:45.6]} 12. Nxf3 {[%clk 0:02:47.9]} 12... Be6
{[%clk 0:02:39.7]} 13. Qb3 {[%clk 0:02:46]} 13... Qe7 {[%clk 0:02:28.5]} 14. Qa3
{[%clk 0:02:43.5]} 14... h6 {[%clk 0:02:16.4]} 15. Rfd1 {[%clk 0:02:40.2]} 15...
Rfd8 {[%clk 0:02:16]} 16. Rd2 {[%clk 0:02:32.2]} 16... a6 {[%clk 0:01:58.6]} 17.
Rad1 {[%clk 0:02:11.9]} 17... b5 {[%clk 0:01:58.1]} 18. Ne1 {[%clk 0:02:02.6]}
18... Bf8 {[%clk 0:01:43.6]} 19. Bf3 {[%clk 0:01:59.1]} 19... Ra7 {[%clk
0:00:57.6]} 20. Bxd5 {[%clk 0:01:34.8]} 20... Rad7 {[%clk 0:00:44.3]} 21. e4
{[%clk 0:01:34.2]} 21... Bxd5 {[%clk 0:00:41.8]} 22. exd5 {[%clk 0:01:28.2]}
22... Rxd5 {[%clk 0:00:42.7]} 23. Rxd5 {[%clk 0:01:24.7]} 23... Rxd5 {[%clk
0:00:43.6]} 24. Rc1 {[%clk 0:01:13.8]} 24... Qe2 {[%clk 0:00:35.9]} 25. Bg3
{[%clk 0:00:49.9]} 25... Rd1 {[%clk 0:00:15.4]} 26. Rxd1 {[%clk 0:00:49.5]}
26... Qxd1 {[%clk 0:00:16.3]} 27. Kf1 {[%clk 0:00:49.9]} 27... a5 {[%clk
0:00:15]} 28. Qb3 {[%clk 0:00:46.9]} 28... Qxb3 {[%clk 0:00:04.8]} 29. axb3
{[%clk 0:00:47.8]} 29... c4 {[%clk 0:00:04]} 30. bxc4 {[%clk 0:00:45]} 30...
bxc4 {[%clk 0:00:04.9]} 31. Nc2 {[%clk 0:00:42.1]} 31... Bc5 {[%clk 0:00:05.4]}
32. Ke2 {[%clk 0:00:36.6]} 32... f5 {[%clk 0:00:05.6]} 33. h4 {[%clk 0:00:34.5]}
33... Kf7 {[%clk 0:00:05.6]} 34. Bf4 {[%clk 0:00:33.9]} 34... h5 {[%clk
0:00:05.8]} 35. Be3 {[%clk 0:00:30.5]} 35... Bd6 {[%clk 0:00:04.9]} 36. Bb6
{[%clk 0:00:27.5]} 36... Ke6 {[%clk 0:00:04.8]} 37. Ne3 {[%clk 0:00:26.9]} 37...
Ne5 {[%clk 0:00:03]} 38. Bd4 {[%clk 0:00:25.3]} 38... f4 {[%clk 0:00:03]} 39.
Bxe5 {[%clk 0:00:23.8]} 39... fxe3 {[%clk 0:00:02.7]} 40. Bxd6 {[%clk
0:00:23.2]} 40... Kxd6 {[%clk 0:00:02.6]} 41. Kxe3 {[%clk 0:00:23.3]} 41... Ke5
{[%clk 0:00:02.8]} 42. f3 {[%clk 0:00:21.7]} 42... Kf5 {[%clk 0:00:02]} 43. g3
{[%clk 0:00:20.8]} 43... Ke5 {[%clk 0:00:02.6]} 44. g4 {[%clk 0:00:20.9]} 44...
a4 {[%clk 0:00:02.8]} 45. gxh5 {[%clk 0:00:19.5]} 45... gxh5 {[%clk 0:00:03.7]}
46. f4+ {[%clk 0:00:19.8]} 46... Kf5 {[%clk 0:00:04.2]} 47. Kf3 {[%clk
0:00:20.1]} 47... Kf6 {[%clk 0:00:04.3]} 48. Ke4 {[%clk 0:00:20.2]} 48... Ke6
{[%clk 0:00:04.5]} 49. f5+ {[%clk 0:00:19.9]} 49... Kd6 {[%clk 0:00:03.6]} 50.
Kd4 {[%clk 0:00:19.6]} 50... Ke7 {[%clk 0:00:02.6]} 51. Ke5 {[%clk 0:00:19.5]}
51... Kf7 {[%clk 0:00:02.5]} 52. f6 {[%clk 0:00:19.3]} 52... Kf8 {[%clk
0:00:01.2]} 53. Ke6 {[%clk 0:00:19.3]} 53... Ke8 {[%clk 0:00:02.1]} 54. Kf5
{[%clk 0:00:18.6]} 54... Kf7 {[%clk 0:00:02.5]} 55. Kg5 {[%clk 0:00:18.9]} 55...
Ke6 {[%clk 0:00:03]} 56. Kg6 {[%clk 0:00:19.1]} 56... a3 {[%clk 0:00:02.7]} 57.
bxa3 {[%clk 0:00:18.7]} 1-0